bitfinex/quotes_BTCUSD_20250123
["timestamp","ask_amount","ask_price","bid_price","bid_amount"]
[1737659007334,0.623816,105530.0,105500.0,0.10049642]
[1737659007335,0.04974874,105530.0,105500.0,0.10049642]
[1737659007544,0.14450874,105530.0,105510.0,0.00094769]
[1737659007732,0.29965725,105530.0,105510.0,0.00094769]
[1737659008277,0.15514851,105530.0,105510.0,0.00094769]
[1737659008493,0.20489725,105530.0,105510.0,0.00094769]
[1737659008936,0.15514851,105530.0,105510.0,0.00094769]
[1737659009092,0.15614851,105530.0,105510.0,0.00094769]
[1737659009292,0.15714851,105530.0,105510.0,0.00094769]
[1737659009543,0.04974874,105520.0,105510.0,0.00094769]
[1737659009892,0.30165725,105530.0,105510.0,0.00094769]
[1737659010110,0.04974874,105520.0,105500.0,0.09858639]
[1737659010698,0.05074874,105520.0,105500.0,0.09858639]
[1737659010921,0.04974874,105520.0,105500.0,0.09858639]
[1737659011258,0.04974874,105520.0,105500.0,0.10058639]
[1737659011814,0.04974874,105520.0,105500.0,0.10158639]
[1737659016602,0.24998997,105530.0,105500.0,0.10158639]
[1737659016812,0.20497871,105530.0,105500.0,0.10158639]
[1737659016966,0.29973871,105530.0,105500.0,0.10158639]
[1737659017350,0.04974874,105520.0,105500.0,0.10158639]
[1737659017560,0.04974874,105520.0,105500.0,0.09858639]
[1737659018496,0.04974874,105520.0,105500.0,0.10058639]
[1737659018736,0.04974874,105520.0,105500.0,0.10158639]
[1737659020382,0.04974874,105520.0,105500.0,0.0042391]
[1737659020584,0.15522997,105510.0,105500.0,0.00329143]
[1737659021040,0.25000697,105510.0,105500.0,0.00329143]
[1737659021591,0.29975571,105510.0,105500.0,0.00229143]
[1737659021788,0.29975571,105510.0,105500.0,0.00929143]
[1737659022087,0.29975571,105510.0,105500.0,0.01829143]
[1737659023210,0.397103,105510.0,105500.0,0.00929143]
[1737659023418,0.34735426,105510.0,105500.0,0.00929143]
[1737659023878,0.15522997,105510.0,105500.0,0.00029143]
[1737659024223,0.25100697,105510.0,105500.0,0.00029143]
[1737659024601,0.26034729,105510.0,105500.0,0.00029143]
[1737659025183,0.31009603,105510.0,105500.0,0.00029143]
[1737659025390,0.26034729,105510.0,105500.0,0.00029143]
[1737659025941,0.35769458,105510.0,105500.0,0.00029143]
[1737659036303,0.50769458,105510.0,105500.0,0.00029143]
[1737659036548,0.50769458,105510.0,105500.0,4.3e-07]
[1737659036549,0.98403143,105510.0,105500.0,4.3e-07]
[1737659036755,0.343,105500.0,105480.0,0.0001423]
[1737659036965,0.93010223,105490.0,105480.0,0.0001423]
[1737659037124,0.77487226,105490.0,105480.0,0.0001423]
[1737659037335,0.82074814,105490.0,105480.0,0.0001423]
[1737659037639,1.12105595,105490.0,105480.0,0.0001423]
[1737659037811,1.04005079,105490.0,105480.0,3e-07]
[1737659038182,0.14457974,105450.0,105440.0,0.08465129]
[1737659038335,0.397157,105450.0,105440.0,0.08479238]
[1737659039253,0.57223484,105450.0,105440.0,0.08479238]
[1737659039471,0.67771607,105450.0,105440.0,0.08479238]
[1737659039673,0.77506336,105450.0,105440.0,0.08479238]
[1737659039887,0.67771607,105450.0,105440.0,0.08479238]
[1737659040093,0.5224861,105450.0,105440.0,0.08479238]
[1737659040299,0.67771607,105450.0,105440.0,0.08479238]
[1737659040525,0.82071607,105450.0,105440.0,0.08479238]
[1737659040724,0.90041607,105450.0,105440.0,0.08479238]
[1737659040939,0.6251861,105450.0,105440.0,0.08479238]
[1737659041150,0.57710826,105450.0,105440.0,0.09379238]
[1737659041381,0.49740826,105450.0,105440.0,0.09379238]
[1737659041588,0.50693336,105450.0,105440.0,0.00014109]
[1737659042501,0.5566821,105450.0,105440.0,0.00014109]
[1737659042725,0.50693336,105450.0,105440.0,0.00014109]
[1737659043149,0.50693336,105450.0,105440.0,0.00028339]
[1737659044104,0.71216333,105450.0,105440.0,0.00028339]
[1737659044308,0.68724117,105450.0,105440.0,0.00028339]
[1737659044813,0.68824117,105450.0,105440.0,0.00128339]
[1737659045006,0.50793336,105450.0,105440.0,0.00128339]
[1737659045413,0.5350112,105450.0,105440.0,0.00228339]
[1737659046193,0.5340112,105450.0,105440.0,0.00128339]
[1737659046396,0.83044846,105450.0,105440.0,0.00128339]
[1737659046627,0.80637062,105450.0,105440.0,0.00228339]
[1737659046906,0.84937062,105450.0,105440.0,0.00228339]
[1737659047325,0.92627062,105450.0,105440.0,0.00228339]
[1737659048086,1.10134846,105450.0,105440.0,0.00228339]
[1737659048290,1.14864846,105450.0,105440.0,0.00228339]
[1737659048465,1.12864846,105450.0,105440.0,0.00228339]
[1737659049018,1.27864846,105450.0,105440.0,0.00228339]
[1737659050306,1.33555846,105450.0,105440.0,0.00228339]
[1737659050506,0.44564,105440.0,105430.0,0.0001425]
[1737659050689,0.97587236,105440.0,105430.0,0.00029168]
[1737659051584,1.02787236,105440.0,105430.0,0.00129168]
[1737659051789,0.97787236,105440.0,105430.0,0.00129168]
[1737659051988,1.02787236,105440.0,105430.0,0.00129168]
[1737659052216,0.99787236,105440.0,105430.0,0.00129168]
[1737659052539,0.99860218,105440.0,105430.0,0.00129168]
[1737659052885,1.00760218,105440.0,105430.0,0.00229168]
[1737659053126,0.91025489,105440.0,105430.0,0.00229168]
[1737659053301,0.76517705,105440.0,105430.0,0.00229168]
[1737659053688,0.78395344,105440.0,105430.0,0.00229168]
[1737659053888,0.85395344,105440.0,105430.0,0.00229168]
[1737659054130,1.96707705,105440.0,105430.0,0.00229168]
[1737659054309,1.88927705,105440.0,105430.0,0.00229168]
[1737659055065,1.98662434,105440.0,105430.0,0.00229168]
[1737659055200,1.88927705,105440.0,105430.0,0.00229168]
[1737659057883,1.86627705,105440.0,105430.0,0.00229168]
[1737659058061,1.93313705,105440.0,105430.0,0.00229168]
[1737659059076,2.00313705,105440.0,105430.0,0.00229168]
[1737659059257,2.07556218,105440.0,105430.0,0.00229168]
[1737659059464,2.15636218,105440.0,105430.0,0.00229168]
[1737659060453,2.21327218,105440.0,105430.0,0.00229168]
[1737659061204,1.61867218,105440.0,105430.0,0.00229168]
[1737659061345,1.62247018,105440.0,105430.0,0.00229168]
[1737659061542,0.500759,105430.0,105420.0,0.0001425]
[1737659061766,1.07842118,105430.0,105420.0,0.0001425]
[1737659062156,0.9428263,105430.0,105420.0,0.0001425]
[1737659062622,0.9228263,105430.0,105420.0,0.0001425]
[1737659062757,1.08742118,105430.0,105420.0,0.0011425]
[1737659062961,1.07842118,105430.0,105420.0,0.0001425]
[1737659063283,1.09542118,105430.0,105420.0,0.0021425]
[1737659063738,2.418468,105420.0,105410.0,0.0001423]
[1737659063932,1.25875234,105420.0,105410.0,0.0001423]
[1737659064148,1.28383018,105420.0,105410.0,0.0001423]
[1737659064290,1.23383018,105420.0,105410.0,0.0001423]
[1737659065618,1.24283018,105420.0,105410.0,0.0011423]
[1737659065803,1.23383018,105420.0,105410.0,0.0001423]
[1737659066115,1.24283018,105420.0,105410.0,0.0011423]
[1737659066324,1.24283018,105420.0,105410.0,3e-07]
[1737659066526,0.601786,105400.0,105390.0,0.0001422]
[1737659066729,1.21237679,105400.0,105390.0,1e-08]
[1737659066924,1.18729895,105400.0,105390.0,1e-08]
[1737659067183,1.21237679,105400.0,105390.0,1e-08]
[1737659067589,1.36207679,105400.0,105390.0,1e-08]
[1737659067792,1.37145473,105400.0,105390.0,1e-08]
[1737659068016,1.10379663,105400.0,105390.0,1e-08]
[1737659068236,0.32991,105390.0,105380.0,0.0101424]
[1737659068441,0.70098435,105390.0,105380.0,0.0101424]
[1737659068646,0.473,105380.0,105370.0,0.00010231]
[1737659068850,1.74830638,105380.0,105370.0,0.00010231]
[1737659069104,1.54560798,105380.0,105370.0,0.00010231]
[1737659069920,1.49809798,105380.0,105370.0,0.00010231]
[1737659070127,1.64809766,105380.0,105370.0,0.00010231]
[1737659070829,1.65709766,105380.0,105370.0,0.00110231]
[1737659071286,1.66609766,105380.0,105370.0,0.00110231]
[1737659071492,0.287912,105360.0,105350.0,0.0001424]
[1737659071699,1.54794314,105360.0,105350.0,0.0001424]
[1737659071905,1.67223012,105360.0,105350.0,0.0001424]
[1737659072330,1.73066668,105360.0,105350.0,0.0001424]
[1737659072543,1.58366699,105360.0,105350.0,0.0001424]
[1737659072748,1.63366699,105360.0,105350.0,0.00063997]
[1737659072878,1.66752629,105360.0,105350.0,0.00063997]
[1737659073086,1.67652629,105360.0,105350.0,0.00163997]
[1737659073298,1.77387358,105360.0,105350.0,0.00163997]
[1737659073752,0.87927358,105360.0,105350.0,0.00163997]
[1737659073930,0.99927358,105360.0,105350.0,0.00163997]
[1737659074490,0.97441428,105360.0,105350.0,0.00163997]
[1737659074698,0.80706699,105360.0,105350.0,0.00163997]
[1737659074910,0.36604314,105360.0,105350.0,0.08123997]
[1737659075339,0.37570816,105360.0,105350.0,0.08123997]
[1737659075557,0.37570816,105360.0,105350.0,0.17616097]
[1737659076002,0.54870816,105360.0,105350.0,0.17616097]
[1737659076225,0.68149201,105360.0,105350.0,0.08123997]
[1737659076459,0.8018393,105360.0,105350.0,0.08123997]
[1737659076686,0.8018393,105360.0,105350.0,0.00163997]
[1737659077900,1.1291393,105360.0,105350.0,0.00163997]
[1737659078110,1.1729993,105360.0,105350.0,0.00163997]
[1737659078305,1.07565201,105360.0,105350.0,0.00163997]
[1737659079360,1.12565201,105360.0,105350.0,0.00163997]
[1737659079799,1.44565201,105360.0,105350.0,0.00163997]
[1737659080204,1.50256201,105360.0,105350.0,0.00163997]
[1737659083824,1.17526201,105360.0,105350.0,0.00163997]
[1737659084044,1.2726093,105360.0,105350.0,0.00163997]
[1737659084241,1.2526093,105360.0,105350.0,0.00163997]
[1737659085114,1.2274686,105360.0,105350.0,0.00163997]
[1737659085317,1.18225521,105360.0,105350.0,9.7e-07]
[1737659085739,1.18225521,105360.0,105310.0,0.0001424]
[1737659085740,0.12,105320.0,105310.0,0.0001424]
[1737659085955,0.194966,105300.0,105280.0,0.1310424]
[1737659086160,1.67148099,105300.0,105290.0,0.01642144]
[1737659086365,1.54290168,105300.0,105290.0,0.01642144]
[1737659086987,2.12378553,105300.0,105290.0,0.01642144]
[1737659087242,2.15065462,105300.0,105290.0,0.01642144]
[1737659087442,2.23491191,105300.0,105290.0,0.01642144]
[1737659087620,1.36931191,105300.0,105290.0,0.01742144]
[1737659087822,1.22423828,105300.0,105290.0,0.01742144]
[1737659088024,1.22472366,105300.0,105290.0,0.01742144]
[1737659088228,1.22472366,105300.0,105280.0,0.0001424]
[1737659088229,0.724885,105290.0,105280.0,0.0001424]
[1737659088372,1.23163266,105290.0,105280.0,0.00029173]
[1737659089429,1.23163266,105290.0,105280.0,0.00467174]
[1737659089833,1.23163266,105290.0,105250.0,0.0568]
[1737659089834,0.095002,105260.0,105250.0,0.0568]
[1737659090008,0.37141064,105260.0,105250.0,0.05694911]
[1737659090216,0.69871064,105260.0,105250.0,0.05694911]
[1737659091024,0.81651593,105260.0,105250.0,0.01014911]
[1737659091233,0.84895593,105260.0,105250.0,0.01014911]
[1737659091444,0.97795593,105260.0,105250.0,0.01014911]
[1737659091653,0.94795593,105260.0,105250.0,0.01014911]
[1737659091852,0.82795593,105260.0,105250.0,0.01014911]
[1737659092440,0.92795593,105260.0,105250.0,0.01014911]
[1737659092747,0.95482502,105260.0,105250.0,0.01014911]
[1737659093010,0.92795593,105260.0,105250.0,0.01014911]
[1737659093217,0.4301607,105220.0,105210.0,6e-05]
[1737659093417,0.4301607,105220.0,105210.0,0.00020953]
[1737659093418,1.85185528,105220.0,105210.0,0.00020953]
[1737659093619,0.245066,105190.0,105180.0,0.09962437]
[1737659093835,0.52147464,105190.0,105180.0,0.09962437]
[1737659094043,0.52147464,105190.0,105180.0,0.10011788]
[1737659096288,0.52147464,105190.0,105180.0,0.01570994]
[1737659096501,0.82488328,105190.0,105180.0,0.01570994]
[1737659096978,0.66882193,105190.0,105180.0,0.01570994]
[1737659097119,0.82488328,105190.0,105180.0,0.01570994]
[1737659097329,0.66882193,105190.0,105180.0,0.01570994]
[1737659097550,0.67682193,105190.0,105180.0,0.01570994]
[1737659098081,0.58847464,105190.0,105180.0,0.01570994]
[1737659098287,0.58233464,105190.0,105180.0,0.01570994]
[1737659098617,0.57333464,105190.0,105180.0,0.01570994]
[1737659099113,0.56533464,105190.0,105180.0,0.01570994]
[1737659099308,0.57433464,105190.0,105180.0,0.01570994]
[1737659099698,0.56533464,105190.0,105180.0,0.01570994]
[1737659099905,0.60171105,105190.0,105180.0,0.01570994]
[1737659100144,0.57433464,105190.0,105180.0,0.01570994]
[1737659100589,0.58333464,105190.0,105180.0,0.01570994]
[1737659100790,0.57433464,105190.0,105180.0,0.01570994]
[1737659101224,0.88939599,105190.0,105180.0,0.01570994]
[1737659101433,0.87726508,105190.0,105180.0,0.01570994]
[1737659101656,1.20168437,105190.0,105180.0,0.01570994]
[1737659101880,1.30291528,105190.0,105180.0,0.01036419]
[1737659102247,0.388075,105180.0,105170.0,0.0001426]
[1737659102426,0.64148364,105180.0,105170.0,0.0001426]
[1737659102633,0.6653324,105180.0,105170.0,0.0001426]
[1737659102792,0.89874104,105180.0,105170.0,0.0001426]
[1737659102991,1.19874104,105180.0,105170.0,0.0001426]
[1737659103197,1.29002104,105180.0,105170.0,0.0001426]
[1737659103404,1.29002104,105180.0,105140.0,0.00026149]
[1737659103405,0.194702,105150.0,105140.0,0.00026149]
[1737659103620,0.245111,105140.0,105130.0,0.51]
[1737659103821,0.8162903,105140.0,105130.0,0.51]
[1737659104038,1.0162903,105140.0,105130.0,0.51]
[1737659104651,1.1162903,105140.0,105130.0,0.51]
[1737659104886,1.1167857,105140.0,105130.0,0.51]
[1737659105079,1.22313299,105140.0,105130.0,0.51]
[1737659105286,1.22313299,105140.0,105130.0,0.47509462]
[1737659105491,1.22313299,105140.0,105130.0,0.45618717]
[1737659105695,0.345138,105110.0,105100.0,0.0001425]
[1737659105904,0.64154664,105110.0,105100.0,0.0001425]
[1737659106114,0.64154664,105110.0,105080.0,0.0655243]
[1737659106115,0.245156,105090.0,105080.0,0.0159243]
[1737659106316,0.095201,105040.0,105030.0,0.1261]
[1737659106528,0.15606135,105060.0,105030.0,0.31651]
[1737659106734,0.20581009,105070.0,105040.0,0.11734729]
[1737659106954,0.15606135,105060.0,105050.0,0.0481]
[1737659107152,0.49859164,105060.0,105050.0,0.0481]
[1737659107369,0.15,105030.0,105000.0,0.00407462]
[1737659107569,0.25129035,105010.0,105000.0,0.00407462]
[1737659108130,0.20581009,105010.0,105000.0,0.00407462]
[1737659108484,0.15,105010.0,105000.0,0.00407462]
[1737659108687,0.40129035,105010.0,105000.0,0.00407462]
[1737659108889,0.49863764,105010.0,105000.0,0.00407462]
[1737659109184,0.49913213,105010.0,105000.0,0.00407462]
[1737659109387,0.29547223,105010.0,105000.0,0.00407462]
[1737659109563,0.40178484,105010.0,105000.0,0.00407462]
[1737659110001,0.40178484,105010.0,105000.0,0.00502701]
[1737659110002,0.00049449,105010.0,105000.0,0.00502701]
[1737659110210,0.00049449,105010.0,105000.0,0.00923379]
[1737659110405,0.05024323,105010.0,105000.0,0.00502701]
[1737659110548,0.20630458,105010.0,105000.0,0.00502701]
[1737659110755,0.20630458,105010.0,105000.0,0.00407462]
[1737659110756,0.70414279,105010.0,105000.0,0.00407462]
[1737659110982,0.52213213,105010.0,105000.0,0.00407462]
[1737659111892,0.67819348,105010.0,105000.0,0.00407462]
[1737659112128,0.75414279,105010.0,105000.0,0.00407462]
[1737659112476,0.52213213,105010.0,105000.0,0.00407462]
[1737659113388,1.00619348,105010.0,105000.0,0.00407462]
[1737659113597,1.08214279,105010.0,105000.0,0.00407462]
[1737659113821,1.06911348,105010.0,105000.0,0.00407462]
[1737659114646,0.57213213,105010.0,105000.0,0.00407462]
[1737659114845,0.53113213,105010.0,105000.0,0.00407462]
[1737659115150,0.53113213,105010.0,105000.0,0.00421702]
[1737659115363,1.28479379,105010.0,105000.0,0.0001424]
[1737659115560,0.66353213,105010.0,105000.0,1e-08]
[1737659115787,0.63545213,105010.0,105000.0,1e-08]
[1737659115953,0.68545213,105010.0,105000.0,1e-08]
[1737659116145,0.63545213,105010.0,105000.0,1e-08]
[1737659116357,0.62645213,105010.0,105000.0,1e-08]
[1737659116742,0.67645213,105010.0,105000.0,1e-08]
[1737659117097,0.61353213,105010.0,105000.0,1e-08]
[1737659117308,0.34913213,105010.0,105000.0,1e-08]
[1737659117468,0.25390313,105010.0,105000.0,1e-08]
[1737659117660,0.34913213,105010.0,105000.0,1e-08]
[1737659117873,0.49913213,105010.0,105000.0,1e-08]
[1737659118060,0.52213213,105010.0,105000.0,1e-08]
[1737659118296,0.56573977,105010.0,105000.0,1e-08]
[1737659118505,0.19410213,105010.0,105000.0,1e-08]
[1737659118753,0.28933113,105010.0,105000.0,1e-08]
[1737659118963,0.24385087,105010.0,105000.0,1e-08]
[1737659119170,0.04410213,105010.0,105000.0,0.04810001]
[1737659119339,0.49145609,105030.0,105000.0,0.1663997]
[1737659119340,0.04974874,105030.0,105000.0,0.1663997]
[1737659119555,0.04974874,105030.0,105000.0,0.1665486]
[1737659119957,0.04974874,105050.0,105010.0,0.11734729]
[1737659120160,0.04974874,105040.0,105020.0,0.00095205]
[1737659120364,0.04974874,105040.0,105020.0,0.22319933]
[1737659120703,0.14495174,105040.0,105020.0,0.1249]
[1737659120843,0.04974874,105040.0,105020.0,0.1249]
[1737659121051,0.24012574,105060.0,105030.0,0.11829933]
[1737659121242,0.04974874,105060.0,105030.0,0.11829933]
[1737659121440,0.04974874,105060.0,105030.0,0.00095204]
[1737659121441,0.14494274,105050.0,105030.0,0.00095204]
[1737659121639,0.04974874,105040.0,105020.0,0.1249]
[1737659122262,0.14495174,105040.0,105020.0,0.1249]
[1737659122489,0.29495874,105030.0,105020.0,0.1249]
[1737659122662,0.29495874,105030.0,105020.0,0.0465]
[1737659122871,0.42894176,105030.0,105020.0,0.0465]
[1737659123065,0.43063574,105020.0,105000.0,0.07814891]
[1737659123270,0.33541474,105020.0,105000.0,0.07814891]
[1737659125266,0.52586774,105020.0,105000.0,0.07814891]
[1737659125678,0.52586774,105020.0,105000.0,0.00014891]
[1737659125679,0.24232503,105010.0,105000.0,0.00014891]
[1737659126082,0.04974874,105010.0,105000.0,0.00014891]
[1737659126294,0.14497374,105020.0,105000.0,0.00014891]
[1737659126489,0.33541374,105020.0,105000.0,0.00014891]
[1737659126695,0.64644417,105020.0,105000.0,0.00014891]
[1737659127110,0.26556317,105020.0,105000.0,0.00014891]
[1737659127319,0.24262071,105020.0,105000.0,0.00014891]
[1737659127520,0.04386,105010.0,104930.0,0.25005837]
[1737659127677,0.04386,105010.0,104970.0,0.09734729]
[1737659128600,0.04386,105010.0,104980.0,0.09734729]
[1737659129381,0.05044792,105020.0,104980.0,0.09734729]
[1737659129631,0.39171701,105020.0,104980.0,0.09734729]
[1737659129835,0.05,105000.0,104960.0,0.01866652]
[1737659130089,0.145248,104990.0,104960.0,0.09734729]
[1737659130365,0.05,104980.0,104930.0,0.00011837]
[1737659130629,0.02209523,104980.0,104970.0,0.09734729]
[1737659130916,0.05,104990.0,104970.0,0.09734729]
[1737659131669,0.05014816,104990.0,104970.0,0.09734729]
[1737659131873,0.05014816,104990.0,104980.0,0.00323267]
[1737659132081,0.00014816,104990.0,104970.0,0.09734729]
[1737659132556,0.05014816,104990.0,104970.0,0.09734729]
[1737659133549,0.25203181,104980.0,104960.0,0.1251]
[1737659133791,0.145265,104970.0,104940.0,0.08]
[1737659134042,0.05,104970.0,104940.0,0.17734729]
[1737659134272,0.5599011,104980.0,104940.0,0.17734729]
[1737659134513,0.05,104970.0,104940.0,0.17734729]
[1737659135259,0.6099011,104980.0,104950.0,0.0031421]
[1737659135507,0.05,104970.0,104940.0,0.17734729]
[1737659135997,0.05,104970.0,104950.0,0.00314355]
[1737659136229,0.05,104970.0,104940.0,0.17734729]
[1737659136457,0.05,104970.0,104940.0,0.08]
[1737659136458,0.05,104960.0,104940.0,0.08]
[1737659136727,0.05,104950.0,104940.0,0.08]
[1737659136973,0.05,104950.0,104930.0,0.04571837]
[1737659136974,0.51262281,104950.0,104930.0,0.04571837]
[1737659137227,0.15677081,104940.0,104930.0,0.04571837]
[1737659137468,0.17677081,104940.0,104930.0,0.00011837]
[1737659137710,0.5194101,104940.0,104930.0,0.00011837]
[1737659137947,0.49955815,104940.0,104930.0,0.00011837]
[1737659138201,0.82932896,104940.0,104930.0,0.00011837]
[1737659138452,0.95572896,104940.0,104930.0,0.00011837]
[1737659138699,0.98001994,104940.0,104930.0,1e-08]
[1737659138967,0.265319,104910.0,104900.0,6.105e-05]
[1737659139209,0.3241181,104910.0,104900.0,6.105e-05]
[1737659139419,0.22677081,104930.0,104900.0,6.105e-05]
[1737659139624,0.15677081,104920.0,104900.0,0.09740834]
[1737659139843,0.15677081,104920.0,104900.0,6.105e-05]
[1737659140052,0.17677081,104930.0,104900.0,0.09740834]
[1737659140256,0.32207181,104930.0,104900.0,0.09740834]
[1737659140484,0.15677081,104920.0,104900.0,6.105e-05]
[1737659140689,0.27208381,104920.0,104900.0,6.105e-05]
[1737659140896,0.22677081,104920.0,104900.0,6.105e-05]
[1737659141110,0.27207281,104930.0,104900.0,6.105e-05]
[1737659141310,0.20677081,104920.0,104900.0,6.105e-05]
[1737659141512,0.27207281,104930.0,104900.0,6.105e-05]
[1737659141732,0.32677081,104910.0,104900.0,6.105e-05]
[1737659141928,0.05,104920.0,104900.0,6.105e-05]
[1737659142156,0.20677081,104920.0,104900.0,6.105e-05]
[1737659142310,0.05,104920.0,104900.0,6.105e-05]
[1737659142519,0.12126818,104920.0,104910.0,0.0036711]
[1737659142720,0.07,104920.0,104900.0,6.105e-05]
[1737659142901,0.22677081,104920.0,104900.0,6.105e-05]
[1737659143088,0.07,104920.0,104900.0,6.105e-05]
[1737659143285,0.02,104930.0,104900.0,0.09740834]
[1737659143532,0.05,104920.0,104900.0,0.12690493]
[1737659143906,0.27207181,104930.0,104900.0,0.12690493]
[1737659144113,0.02,104930.0,104900.0,0.12690493]
[1737659144311,0.50666886,104940.0,104900.0,0.12690493]
[1737659144502,0.22677081,104930.0,104900.0,0.12690493]
[1737659144706,0.22702495,104930.0,104900.0,0.12690493]
[1737659144920,0.02,104930.0,104900.0,0.12690493]
[1737659145125,0.04400805,104940.0,104910.0,0.25804334]
[1737659145393,0.04400805,104940.0,104920.0,0.15702495]
[1737659145609,0.04400805,104940.0,104930.0,0.20392495]
[1737659145818,0.04400805,104940.0,104930.0,0.33076883]
[1737659146021,0.02,104970.0,104930.0,0.33442637]
[1737659146227,0.02,104970.0,104940.0,0.09734729]
[1737659146652,0.30254758,104980.0,104940.0,0.10100535]
[1737659146835,0.39989487,104980.0,104940.0,0.10100535]
[1737659147039,0.49515087,104980.0,104940.0,0.2580303]
[1737659147453,0.05,104970.0,104940.0,0.2580303]
[1737659147658,0.44515087,104980.0,104940.0,0.2580303]
[1737659147899,0.14552263,104980.0,104940.0,0.2580303]
[1737659148082,0.35592045,104980.0,104940.0,0.28746962]
[1737659148293,0.3224334,104980.0,104940.0,0.13044467]
[1737659148502,0.80082369,104980.0,104940.0,0.10100535]
[1737659148722,0.20702495,104970.0,104940.0,0.10100535]
[1737659148940,0.39963824,104970.0,104930.0,0.0469]
[1737659149145,0.24261329,104970.0,104930.0,0.33071483]
[1737659149369,0.165275,104960.0,104930.0,0.17368988]
[1737659149587,0.145293,104940.0,104910.0,0.08166285]
[1737659149787,0.305869,104950.0,104920.0,0.15702495]
[1737659150043,0.305869,104950.0,104910.0,0.34575176]
[1737659150247,0.05,104940.0,104930.0,0.00337348]
[1737659150456,0.305867,104950.0,104910.0,0.33507224]
[1737659150670,0.05,104940.0,104930.0,0.00337506]
[1737659150879,0.05,104940.0,104930.0,0.00049449]
[1737659151089,0.17,104950.0,104930.0,0.00386955]
[1737659151545,0.05,104940.0,104930.0,0.00401235]
[1737659151766,0.17,104950.0,104930.0,0.00401235]
[1737659152386,0.26223,104950.0,104930.0,0.00401235]
[1737659152592,0.05,104940.0,104930.0,0.00401235]
[1737659153003,0.17,104950.0,104920.0,0.15702495]
[1737659153137,0.22049846,104950.0,104930.0,0.00506906]
[1737659153341,0.15049846,104950.0,104930.0,0.00506906]
[1737659153603,0.00049846,104950.0,104940.0,0.25437224]
[1737659153751,0.00049846,104950.0,104940.0,0.09734729]
[1737659153970,0.00049846,104950.0,104940.0,0.10240033]
[1737659154172,0.00049846,104950.0,104940.0,0.00505304]
[1737659154580,0.00049846,104950.0,104940.0,0.00433107]
[1737659155760,0.00049846,104950.0,104920.0,0.15702495]
[1737659156040,0.00049846,104950.0,104940.0,0.00433107]
[1737659156230,0.00049846,104950.0,104940.0,0.09734729]
[1737659156667,0.00049846,104950.0,104940.0,0.00433107]
[1737659157020,0.00049846,104950.0,104940.0,0.00506028]
[1737659157221,0.05049846,104950.0,104940.0,0.00506028]
[1737659157425,0.05049846,104950.0,104920.0,0.15702495]
[1737659157426,0.00049846,104950.0,104920.0,0.15702495]
[1737659157636,0.00049846,104950.0,104930.0,0.09734729]
[1737659157828,0.00049846,104950.0,104940.0,0.00433738]
[1737659158026,0.00049846,104950.0,104930.0,0.25437224]
[1737659158228,0.00049846,104950.0,104940.0,0.00505223]
[1737659158434,0.00049846,104950.0,104940.0,0.10239952]
[1737659160974,0.00049846,104950.0,104940.0,0.25942447]
[1737659161343,0.00049846,104950.0,104940.0,0.30772447]
[1737659161748,0.00049846,104950.0,104940.0,0.33722962]
[1737659161942,0.00049846,104950.0,104940.0,0.41242962]
[1737659162148,0.00049846,104950.0,104940.0,0.56242962]
[1737659162419,0.00049846,104950.0,104940.0,0.41242962]
[1737659162670,0.00049846,104950.0,104940.0,0.18020467]
[1737659162854,0.00049846,104950.0,104940.0,0.10254232]
[1737659163931,0.00049846,104950.0,104940.0,0.00519503]
[1737659164154,0.14578146,104950.0,104940.0,0.00519503]
[1737659164585,0.05049846,104950.0,104940.0,0.0001428]
[1737659164793,0.00049846,104950.0,104940.0,0.0001428]
[1737659165006,0.00049846,104950.0,104940.0,0.00510932]
[1737659165455,0.05049846,104950.0,104940.0,0.00510932]
[1737659165667,0.00049846,104950.0,104940.0,0.0001428]
[1737659165874,0.05049846,104950.0,104940.0,0.0001428]
[1737659166514,0.16578146,104950.0,104940.0,0.0001428]
[1737659167562,0.5201537,104950.0,104940.0,0.0001428]
[1737659167810,0.6021537,104950.0,104940.0,0.0001428]
[1737659167996,0.6508537,104950.0,104940.0,0.0001428]
[1737659169208,0.6278537,104950.0,104940.0,0.0001428]
[1737659170021,0.6478537,104950.0,104940.0,0.0001428]
[1737659170223,0.47212875,104950.0,104940.0,0.0001428]
[1737659170427,0.5791537,104950.0,104940.0,0.0001428]
[1737659170638,0.67650099,104950.0,104940.0,0.0001428]
[1737659170842,0.5791537,104950.0,104940.0,0.0001428]
[1737659173046,0.9674537,104950.0,104940.0,0.0001428]
[1737659173241,0.40234395,104910.0,104900.0,0.0010239]
[1737659173442,0.49969124,104910.0,104900.0,6.105e-05]
[1737659173648,0.51975354,104910.0,104900.0,0.00845286]
[1737659173845,0.49975354,104910.0,104900.0,0.00845286]
[1737659174258,0.295319,104910.0,104900.0,0.00845286]
[1737659174660,0.52025169,104910.0,104900.0,0.00845286]
[1737659175182,0.52025169,104910.0,104900.0,6.105e-05]
[1737659175588,0.15049815,104910.0,104900.0,6.105e-05]
[1737659175917,4.88689607,104910.0,104900.0,6.105e-05]
[1737659176127,5.08624373,104910.0,104900.0,6.105e-05]
[1737659176357,5.10624373,104910.0,104900.0,6.105e-05]
[1737659176568,5.05989607,104910.0,104900.0,6.105e-05]
[1737659176788,4.93346053,104910.0,104900.0,6.105e-05]
[1737659177215,4.81046053,104910.0,104900.0,6.105e-05]
[1737659177432,4.85980819,104910.0,104900.0,6.105e-05]
[1737659177763,4.83346053,104910.0,104900.0,6.105e-05]
[1737659177976,4.93080782,104910.0,104900.0,6.105e-05]
[1737659178497,5.20007315,104910.0,104900.0,6.105e-05]
[1737659178724,5.09287806,104910.0,104900.0,6.105e-05]
[1737659178924,4.82253077,104910.0,104900.0,6.105e-05]
[1737659179998,4.8416045,104910.0,104900.0,6.105e-05]
[1737659180168,2.4518715,104910.0,104900.0,6.105e-05]
[1737659180364,1.5567435,104910.0,104900.0,6.105e-05]
[1737659180774,1.4792105,104910.0,104900.0,6.105e-05]
[1737659180984,1.58134379,104910.0,104900.0,6.105e-05]
[1737659181135,1.4232055,104910.0,104900.0,6.105e-05]
[1737659181342,0.04386,104910.0,104900.0,0.09740834]
[1737659181545,0.25105509,104910.0,104900.0,6.105e-05]
[1737659181742,0.25105509,104910.0,104900.0,0.00876899]
[1737659182177,0.27105509,104910.0,104900.0,6.105e-05]
[1737659182442,0.25105509,104910.0,104900.0,6.105e-05]
[1737659182955,0.25105509,104910.0,104900.0,0.00954218]
[1737659183204,0.15719509,104930.0,104900.0,0.22350834]
[1737659183391,0.00029989,104950.0,104910.0,0.14734729]
[1737659183607,0.00029989,104950.0,104910.0,0.30454238]
[1737659183883,0.15724248,104950.0,104920.0,0.00479179]
[1737659184085,4.739e-05,104950.0,104930.0,0.09734729]
[1737659184310,0.15719509,104940.0,104920.0,0.10213908]
[1737659184500,0.15724248,104950.0,104920.0,0.09734729]
[1737659184875,4.739e-05,104950.0,104930.0,0.09734729]
[1737659185337,4.739e-05,104950.0,104940.0,0.43494733]
[1737659185558,4.739e-05,104950.0,104940.0,0.22675224]
[1737659185764,4.739e-05,104950.0,104940.0,0.27675224]